[Event "*** Titled Tuesday Blitz"]
[Site "Chess.com"]
[Date "2019.06.04"]
[Round "9"]
[White "velemajstor767276"]
[Black "ChessWeebs"]
[Result "1-0"]
[WhiteElo "2549"]
[BlackElo "2777"]
[TimeControl "180+2"]
[EndTime "15:06:27 PDT"]
[Termination "velemajstor767276 won by resignation"]

1. e4 {[%clk 0:03:01.9]} 1... c6 {[%clk 0:02:59.6]} 2. Nf3 {[%clk 0:03:01.7]}
2... d5 {[%clk 0:03:00.5]} 3. Nc3 {[%clk 0:03:03]} 3... Bg4 {[%clk 0:03:01.4]}
4. d4 {[%clk 0:03:04.3]} 4... e6 {[%clk 0:02:57.4]} 5. e5 {[%clk 0:03:02.6]}
5... Ne7 {[%clk 0:02:56.9]} 6. h3 {[%clk 0:02:59.4]} 6... Bxf3 {[%clk
0:02:57.6]} 7. Qxf3 {[%clk 0:02:59.1]} 7... c5 {[%clk 0:02:59]} 8. Bb5+ {[%clk
0:02:42.8]} 8... Nec6 {[%clk 0:02:59]} 9. dxc5 {[%clk 0:02:40.7]} 9... Nd7
{[%clk 0:02:58.5]} 10. Bf4 {[%clk 0:02:31.8]} 10... Bxc5 {[%clk 0:02:55.6]} 11.
Qg3 {[%clk 0:02:30.8]} 11... g6 {[%clk 0:02:56.1]} 12. O-O-O {[%clk 0:02:27.9]}
12... a6 {[%clk 0:02:52.1]} 13. Bxc6 {[%clk 0:02:24.2]} 13... bxc6 {[%clk
0:02:53.2]} 14. Kb1 {[%clk 0:02:22.2]} 14... Be7 {[%clk 0:02:47.8]} 15. Bh6
{[%clk 0:02:20.7]} 15... Rb8 {[%clk 0:02:46]} 16. h4 {[%clk 0:02:20.2]} 16...
Qa5 {[%clk 0:02:43.7]} 17. Ka1 {[%clk 0:02:17.3]} 17... Nb6 {[%clk 0:02:38.9]}
18. h5 {[%clk 0:02:16.6]} 18... Nc4 {[%clk 0:02:28.8]} 19. hxg6 {[%clk
0:02:13.8]} 19... hxg6 {[%clk 0:02:22]} 20. Bc1 {[%clk 0:02:13.4]} 20... Rxh1
{[%clk 0:02:10.3]} 21. Rxh1 {[%clk 0:02:14.5]} 21... Kd7 {[%clk 0:01:52.3]} 22.
Rh7 {[%clk 0:02:14.3]} 22... Qb4 {[%clk 0:01:26.4]} 23. a3 {[%clk 0:02:04.6]}
23... Qb6 {[%clk 0:00:56.3]} 24. Rxf7 {[%clk 0:02:04.5]} 24... Qd4 {[%clk
0:00:48.3]} 25. Qg5 {[%clk 0:02:01.1]} 25... Re8 {[%clk 0:00:48.1]} 26. f4
{[%clk 0:02:01.7]} 26... Nxa3 {[%clk 0:00:47]} 27. Qxg6 {[%clk 0:01:59.3]} 27...
Nb5 {[%clk 0:00:46.2]} 28. f5 {[%clk 0:01:49.2]} 28... Nxc3 {[%clk 0:00:38.9]}
29. Qxe6+ {[%clk 0:01:48.4]} 29... Kd8 {[%clk 0:00:40.5]} 30. Qxc6 {[%clk
0:01:39.9]} 30... Qd1 {[%clk 0:00:24.5]} 31. Qxc3 {[%clk 0:01:28.5]} 31... Qxc1+
{[%clk 0:00:25.5]} 32. Ka2 {[%clk 0:01:28.9]} 32... Qf4 {[%clk 0:00:18.5]} 33.
f6 {[%clk 0:01:24.5]} 33... Qa4+ {[%clk 0:00:16.9]} 34. Kb1 {[%clk 0:01:25.2]}
34... Qb5 {[%clk 0:00:13.9]} 35. fxe7+ {[%clk 0:01:24.7]} 35... Rxe7 {[%clk
0:00:15.8]} 36. Rf8+ {[%clk 0:01:17]} 36... Re8 {[%clk 0:00:17.2]} 37. Rxe8+
{[%clk 0:01:11]} 37... Kxe8 {[%clk 0:00:19.1]} 38. Qc8+ {[%clk 0:01:10.7]} 38...
Ke7 {[%clk 0:00:20.2]} 39. Qf5 {[%clk 0:01:07.7]} 39... Qc6 {[%clk 0:00:12.4]}
40. Qf6+ {[%clk 0:01:07.6]} 40... Qxf6 {[%clk 0:00:13.4]} 41. exf6+ {[%clk
0:01:08.4]} 41... Kxf6 {[%clk 0:00:15.3]} 42. Ka2 {[%clk 0:01:07.1]} 42... Ke5
{[%clk 0:00:17.2]} 43. Ka3 {[%clk 0:01:06.7]} 43... Ke4 {[%clk 0:00:18.8]} 44.
Kb4 {[%clk 0:01:06.4]} 44... Ke3 {[%clk 0:00:19.6]} 45. Kc5 {[%clk 0:01:06.6]}
45... d4 {[%clk 0:00:20.4]} 46. g4 {[%clk 0:01:07.6]} 46... Kd2 {[%clk
0:00:21.4]} 47. Kxd4 {[%clk 0:01:07.7]} 47... Kxc2 {[%clk 0:00:23.3]} 48. g5
{[%clk 0:01:09.4]} 1-0

[Event "*** Titled Tuesday Blitz"]
[Site "Chess.com"]
[Date "2019.06.04"]
[Round "9"]
[White "2165149677570"]
[Black "tbalabayev"]
[Result "1-0"]
[WhiteElo "2219"]
[BlackElo "2328"]
[TimeControl "180+2"]
[EndTime "15:06:30 PDT"]
[Termination "2165149677570 won on time"]

1. e4 {[%clk 0:03:01.9]} 1... c5 {[%clk 0:03:00.6]} 2. Nf3 {[%clk 0:03:02.9]}
2... Nc6 {[%clk 0:03:02.2]} 3. Bb5 {[%clk 0:03:04.2]} 3... g6 {[%clk 0:03:02.7]}
4. O-O {[%clk 0:03:05.4]} 4... Bg7 {[%clk 0:03:03.4]} 5. Re1 {[%clk 0:03:06.5]}
5... Nf6 {[%clk 0:03:04.2]} 6. e5 {[%clk 0:03:08.1]} 6... Nd5 {[%clk 0:03:05.2]}
7. Nc3 {[%clk 0:03:09.8]} 7... Nc7 {[%clk 0:03:06.1]} 8. Bxc6 {[%clk 0:03:11.5]}
8... dxc6 {[%clk 0:03:06.8]} 9. Ne4 {[%clk 0:03:10.7]} 9... b6 {[%clk
0:03:03.1]} 10. d3 {[%clk 0:02:38.1]} 10... O-O {[%clk 0:03:01.5]} 11. h3 {[%clk
0:02:20.3]} 11... f6 {[%clk 0:02:53.1]} 12. exf6 {[%clk 0:02:11]} 12... exf6
{[%clk 0:02:55]} 13. Bf4 {[%clk 0:02:08.1]} 13... Ne6 {[%clk 0:02:37]} 14. Bg3
{[%clk 0:01:57.4]} 14... f5 {[%clk 0:02:24.6]} 15. Nd6 {[%clk 0:01:43]} 15... f4
{[%clk 0:02:05.9]} 16. Nxc8 {[%clk 0:01:40.7]} 16... fxg3 {[%clk 0:01:48.1]} 17.
Rxe6 {[%clk 0:01:36.4]} 17... gxf2+ {[%clk 0:01:48.8]} 18. Kxf2 {[%clk
0:01:04.9]} 18... Qxc8 {[%clk 0:01:43.9]} 19. Qe2 {[%clk 0:00:54.9]} 19... Bxb2
{[%clk 0:01:34.4]} 20. Re1 {[%clk 0:00:54.2]} 20... Bc3 {[%clk 0:01:31]} 21. Re7
{[%clk 0:00:37.5]} 21... Bxe1+ {[%clk 0:01:21.4]} 22. Qxe1 {[%clk 0:00:38.9]}
22... Qf5 {[%clk 0:01:12.2]} 23. Kg1 {[%clk 0:00:28.5]} 23... Rf7 {[%clk
0:01:07.6]} 24. Re5 {[%clk 0:00:28.8]} 24... Qf4 {[%clk 0:00:37]} 25. Ng5 {[%clk
0:00:15.4]} 25... Rf5 {[%clk 0:00:17.7]} 26. Re8+ {[%clk 0:00:09.8]} 26... Rxe8
{[%clk 0:00:06.5]} 27. Qxe8+ {[%clk 0:00:11.7]} 27... Rf8 {[%clk 0:00:04.7]} 28.
Qe6+ {[%clk 0:00:05.8]} 1-0

[Event "*** Titled Tuesday Blitz"]
[Site "Chess.com"]
[Date "2019.06.04"]
[Round "9"]
[White "KhazarBabazada"]
[Black "ChessWarrior7197"]
[Result "1-0"]
[WhiteElo "2628"]
[BlackElo "2816"]
[TimeControl "180+2"]
[EndTime "15:06:40 PDT"]
[Termination "KhazarBabazada won by resignation"]

1. e4 {[%clk 0:03:01.9]} 1... c5 {[%clk 0:03:00.7]} 2. Nf3 {[%clk 0:03:02.7]}
2... Nc6 {[%clk 0:03:01.8]} 3. d4 {[%clk 0:03:03.9]} 3... cxd4 {[%clk
0:03:02.5]} 4. Nxd4 {[%clk 0:03:05.8]} 4... g6 {[%clk 0:03:02.6]} 5. c4 {[%clk
0:03:06.6]} 5... Bg7 {[%clk 0:03:03.2]} 6. Be3 {[%clk 0:03:08.1]} 6... Bf6
{[%clk 0:03:03]} 7. Nc3 {[%clk 0:03:08.4]} 7... d6 {[%clk 0:02:59.6]} 8. Be2
{[%clk 0:03:08.7]} 8... Bg7 {[%clk 0:03:00.1]} 9. Qd2 {[%clk 0:03:10]} 9... Nf6
{[%clk 0:03:01.3]} 10. O-O {[%clk 0:03:10.8]} 10... O-O {[%clk 0:03:02.6]} 11.
f3 {[%clk 0:03:11.4]} 11... Bd7 {[%clk 0:03:03.2]} 12. Rac1 {[%clk 0:03:12.5]}
12... Nxd4 {[%clk 0:03:03.3]} 13. Bxd4 {[%clk 0:03:14.4]} 13... Bc6 {[%clk
0:03:04.6]} 14. b3 {[%clk 0:03:13.3]} 14... a6 {[%clk 0:03:04.9]} 15. Rfd1
{[%clk 0:03:12.8]} 15... Rc8 {[%clk 0:03:06]} 16. Nd5 {[%clk 0:03:05]} 16... Nd7
{[%clk 0:03:01.1]} 17. Bxg7 {[%clk 0:03:05.3]} 17... Kxg7 {[%clk 0:03:03]} 18.
Qb2+ {[%clk 0:03:06.6]} 18... Kg8 {[%clk 0:03:02.9]} 19. Kh1 {[%clk 0:02:58.9]}
19... Bxd5 {[%clk 0:03:01.7]} 20. cxd5 {[%clk 0:02:59.7]} 20... Qb6 {[%clk
0:03:00.7]} 21. Qd2 {[%clk 0:02:56.8]} 21... h5 {[%clk 0:02:47.3]} 22. f4 {[%clk
0:02:53.1]} 22... Nf6 {[%clk 0:02:46.1]} 23. Bf3 {[%clk 0:02:51.9]} 23... a5
{[%clk 0:02:28.1]} 24. e5 {[%clk 0:02:48.4]} 24... Nd7 {[%clk 0:02:29]} 25. Qe2
{[%clk 0:02:38.9]} 25... Rxc1 {[%clk 0:02:17.4]} 26. Rxc1 {[%clk 0:02:40.8]}
26... Qd4 {[%clk 0:02:18.7]} 27. Rc7 {[%clk 0:02:24.5]} 27... dxe5 {[%clk
0:01:58.5]} 28. Rxd7 {[%clk 0:02:23.5]} 28... e4 {[%clk 0:01:59.7]} 29. Qd1
{[%clk 0:02:13.8]} 29... Qe3 {[%clk 0:02:00.7]} 30. Rxe7 {[%clk 0:02:11.9]}
30... Qxf4 {[%clk 0:01:12.3]} 31. Rxe4 {[%clk 0:02:01.6]} 31... Qd6 {[%clk
0:01:13.2]} 32. h3 {[%clk 0:01:54]} 32... Rc8 {[%clk 0:01:13.1]} 33. Re1 {[%clk
0:01:54.7]} 33... Qg3 {[%clk 0:01:07]} 34. d6 {[%clk 0:01:46.4]} 34... Rd8
{[%clk 0:01:07.5]} 35. d7 {[%clk 0:01:44]} 35... Kh7 {[%clk 0:01:06.8]} 36. Re8
{[%clk 0:01:39.2]} 36... Qg5 {[%clk 0:01:04.9]} 37. Qd4 {[%clk 0:01:17]} 37...
Qc1+ {[%clk 0:00:32.1]} 38. Kh2 {[%clk 0:01:16.6]} 38... Qc7+ {[%clk 0:00:32.5]}
39. g3 {[%clk 0:01:15.9]} 39... Kh6 {[%clk 0:00:25.2]} 40. Qh8+ {[%clk
0:00:47.7]} 40... Kg5 {[%clk 0:00:25.4]} 41. Re5+ {[%clk 0:00:48.7]} 1-0

[Event "*** Titled Tuesday Blitz"]
[Site "Chess.com"]
[Date "2019.06.04"]
[Round "9"]
[White "GMKrikor"]
[Black "jacky72"]
[Result "1-0"]
[WhiteElo "2716"]
[BlackElo "2720"]
[TimeControl "180+2"]
[EndTime "15:06:42 PDT"]
[Termination "GMKrikor won by checkmate"]

1. Nf3 {[%clk 0:03:01.9]} 1... Nf6 {[%clk 0:03:00.4]} 2. g3 {[%clk 0:02:57.2]}
2... g6 {[%clk 0:03:02.3]} 3. b3 {[%clk 0:02:57.9]} 3... Bg7 {[%clk 0:03:04.2]}
4. Bb2 {[%clk 0:02:59.8]} 4... O-O {[%clk 0:03:06.1]} 5. Bg2 {[%clk 0:03:01.2]}
5... d6 {[%clk 0:03:04.9]} 6. d4 {[%clk 0:03:01.9]} 6... Nc6 {[%clk 0:03:02.5]}
7. O-O {[%clk 0:02:36.3]} 7... e5 {[%clk 0:03:00.1]} 8. dxe5 {[%clk 0:02:32]}
8... Ng4 {[%clk 0:03:01]} 9. c4 {[%clk 0:02:33.3]} 9... Ngxe5 {[%clk 0:03:01]}
10. Nc3 {[%clk 0:02:33.8]} 10... Nxf3+ {[%clk 0:02:59.7]} 11. Bxf3 {[%clk
0:02:34.3]} 11... Bh3 {[%clk 0:02:58.3]} 12. Bg2 {[%clk 0:02:25.1]} 12... Bxg2
{[%clk 0:02:58.4]} 13. Kxg2 {[%clk 0:02:27]} 13... Re8 {[%clk 0:02:55.7]} 14.
Qd2 {[%clk 0:02:22.2]} 14... Qf6 {[%clk 0:02:56]} 15. Rad1 {[%clk 0:02:15.9]}
15... Qe6 {[%clk 0:02:42.4]} 16. Nd5 {[%clk 0:02:03.9]} 16... Rac8 {[%clk
0:02:33.8]} 17. Bxg7 {[%clk 0:02:01.1]} 17... Kxg7 {[%clk 0:02:35.7]} 18. Rfe1
{[%clk 0:01:52.5]} 18... Ne7 {[%clk 0:02:24.1]} 19. Qd4+ {[%clk 0:01:14.9]}
19... f6 {[%clk 0:02:24.6]} 20. Qxa7 {[%clk 0:01:01.2]} 20... Nxd5 {[%clk
0:02:25.4]} 21. cxd5 {[%clk 0:00:47.6]} 21... Qe4+ {[%clk 0:02:26.7]} 22. Kg1
{[%clk 0:00:44.9]} 22... Qb4 {[%clk 0:02:24.9]} 23. Qd4 {[%clk 0:00:42.1]} 23...
Qa5 {[%clk 0:02:08.3]} 24. a4 {[%clk 0:00:42.1]} 24... Kf7 {[%clk 0:02:06.1]}
25. e3 {[%clk 0:00:40.4]} 25... f5 {[%clk 0:02:00.4]} 26. Qd2 {[%clk 0:00:24.9]}
26... Qb6 {[%clk 0:01:56.1]} 27. Qd3 {[%clk 0:00:26.1]} 27... Re4 {[%clk
0:01:55.8]} 28. Rc1 {[%clk 0:00:27.2]} 28... Rce8 {[%clk 0:01:53.9]} 29. Rc3
{[%clk 0:00:25.7]} 29... R8e7 {[%clk 0:01:52.6]} 30. Rec1 {[%clk 0:00:26.2]}
30... R4e5 {[%clk 0:01:42.3]} 31. Qc2 {[%clk 0:00:18.5]} 31... Rxd5 {[%clk
0:01:41.4]} 32. Rxc7 {[%clk 0:00:19.5]} 32... Re5 {[%clk 0:01:42.9]} 33. Qc4+
{[%clk 0:00:18.3]} 33... Kg7 {[%clk 0:01:38.2]} 34. Rxe7+ {[%clk 0:00:18.9]}
34... Rxe7 {[%clk 0:01:40.1]} 35. Qd3 {[%clk 0:00:17.8]} 35... Kh6 {[%clk
0:01:29.9]} 36. Rd1 {[%clk 0:00:18.5]} 36... Re6 {[%clk 0:01:26.6]} 37. Qd5
{[%clk 0:00:19.4]} 37... Re4 {[%clk 0:01:25]} 38. Qxd6 {[%clk 0:00:18.6]} 38...
Qxb3 {[%clk 0:01:25.9]} 39. Qf8+ {[%clk 0:00:19.7]} 39... Kh5 {[%clk 0:01:27]}
40. Rd7 {[%clk 0:00:14.2]} 40... Kg4 {[%clk 0:01:08.4]} 41. Kg2 {[%clk
0:00:15.6]} 41... Rxe3 {[%clk 0:00:53.3]} 42. h3+ {[%clk 0:00:16.9]} 42... Kg5
{[%clk 0:00:53.5]} 43. Qd8+ {[%clk 0:00:17.7]} 43... Kh6 {[%clk 0:00:49.4]} 44.
Qh4# {[%clk 0:00:16.6]} 1-0

[Event "*** Titled Tuesday Blitz"]
[Site "Chess.com"]
[Date "2019.06.04"]
[Round "9"]
[White "chesstatour"]
[Black "colemman"]
[Result "0-1"]
[WhiteElo "2036"]
[BlackElo "2584"]
[TimeControl "180+2"]
[EndTime "15:06:49 PDT"]
[Termination "colemman won on time"]

1. c4 {[%clk 0:03:01.9]} 1... c6 {[%clk 0:03:00.9]} 2. Nc3 {[%clk 0:03:03.1]}
2... Nf6 {[%clk 0:03:02.3]} 3. d4 {[%clk 0:03:04.8]} 3... d5 {[%clk 0:03:03]} 4.
g3 {[%clk 0:03:02.4]} 4... dxc4 {[%clk 0:03:03.3]} 5. Nf3 {[%clk 0:03:01.4]}
5... b5 {[%clk 0:03:03.7]} 6. Bg2 {[%clk 0:02:57.1]} 6... b4 {[%clk 0:03:02.9]}
7. Na4 {[%clk 0:02:57]} 7... a5 {[%clk 0:03:00.3]} 8. Ne5 {[%clk 0:02:53.5]}
8... Nd5 {[%clk 0:02:59.5]} 9. e4 {[%clk 0:02:54]} 9... Nf6 {[%clk 0:02:59.5]}
10. O-O {[%clk 0:02:12.8]} 10... Ba6 {[%clk 0:02:58.3]} 11. Re1 {[%clk
0:02:12.1]} 11... e6 {[%clk 0:02:58.6]} 12. Bg5 {[%clk 0:01:59.2]} 12... Bd6
{[%clk 0:02:56.3]} 13. Nxf7 {[%clk 0:01:29.7]} 13... Kxf7 {[%clk 0:02:53.6]} 14.
e5 {[%clk 0:01:30.7]} 14... Be7 {[%clk 0:02:48.7]} 15. exf6 {[%clk 0:01:28.2]}
15... gxf6 {[%clk 0:02:39.3]} 16. Qh5+ {[%clk 0:01:25]} 16... Kg8 {[%clk
0:02:24.3]} 17. Bh6 {[%clk 0:01:21.3]} 17... Bf8 {[%clk 0:02:02.4]} 18. Qg4+
{[%clk 0:01:12.9]} 18... Kf7 {[%clk 0:02:02.6]} 19. Qxe6+ {[%clk 0:01:03.8]}
19... Kg6 {[%clk 0:02:02.7]} 20. Bf4 {[%clk 0:00:39.1]} 20... Ra7 {[%clk
0:01:36.2]} 21. Be4+ {[%clk 0:00:33.9]} 21... Kg7 {[%clk 0:01:35.5]} 22. d5
{[%clk 0:00:24.8]} 22... cxd5 {[%clk 0:01:18.3]} 23. Bxd5 {[%clk 0:00:11.5]}
23... h5 {[%clk 0:01:18]} 24. Qf5 {[%clk 0:00:07.8]} 24... Bc8 {[%clk
0:01:13.6]} 25. Qc2 {[%clk 0:00:05.8]} 25... Nd7 {[%clk 0:01:10.9]} 26. Be4
{[%clk 0:00:05.4]} 26... Be7 {[%clk 0:01:04.6]} 27. Rad1 {[%clk 0:00:06.3]}
27... Qg8 {[%clk 0:01:01.9]} 28. Bf5 {[%clk 0:00:06.2]} 28... Bf8 {[%clk
0:00:58.4]} 29. Bxd7 {[%clk 0:00:04.5]} 29... Rxd7 {[%clk 0:00:57.4]} 30. Nb6
{[%clk 0:00:04.1]} 30... Rxd1 {[%clk 0:00:57.7]} 31. Rxd1 {[%clk 0:00:04.4]}
31... Be6 {[%clk 0:00:59.3]} 32. Re1 {[%clk 0:00:04.2]} 32... Bc5 {[%clk
0:00:57.2]} 33. Na4 {[%clk 0:00:03]} 33... Bf8 {[%clk 0:00:48.2]} 34. Qe4 {[%clk
0:00:02.7]} 34... Bf7 {[%clk 0:00:48.7]} 35. Qb7 {[%clk 0:00:03.1]} 35... b3
{[%clk 0:00:44.9]} 36. axb3 {[%clk 0:00:03.7]} 36... cxb3 {[%clk 0:00:46.3]} 37.
Nb6 {[%clk 0:00:03.9]} 37... Bb4 {[%clk 0:00:45.5]} 38. Rd1 {[%clk 0:00:03.4]}
38... Qe8 {[%clk 0:00:43.4]} 39. Be3 {[%clk 0:00:02.2]} 39... Kg6 {[%clk
0:00:43.5]} 40. Rd7 {[%clk 0:00:02.3]} 40... Be6 {[%clk 0:00:42.7]} 0-1

[Event "*** Titled Tuesday Blitz"]
[Site "Chess.com"]
[Date "2019.06.04"]
[Round "9"]
[White "Everyfishknows"]
[Black "TonRicher"]
[Result "1-0"]
[WhiteElo "2240"]
[BlackElo "2336"]
[TimeControl "180+2"]
[EndTime "15:06:51 PDT"]
[Termination "Everyfishknows won by resignation"]

1. Nf3 {[%clk 0:03:01.9]} 1... Nf6 {[%clk 0:02:56.3]} 2. c4 {[%clk 0:02:59.4]}
2... e6 {[%clk 0:02:57.3]} 3. g3 {[%clk 0:02:59.9]} 3... d5 {[%clk 0:02:57.8]}
4. b3 {[%clk 0:02:58.9]} 4... Be7 {[%clk 0:02:58.3]} 5. Bg2 {[%clk 0:02:49]}
5... O-O {[%clk 0:02:58.8]} 6. O-O {[%clk 0:02:49.9]} 6... d4 {[%clk 0:02:52.8]}
7. Bb2 {[%clk 0:02:48.6]} 7... c5 {[%clk 0:02:53.5]} 8. e3 {[%clk 0:02:48.6]}
8... Nc6 {[%clk 0:02:50.4]} 9. exd4 {[%clk 0:02:49.3]} 9... cxd4 {[%clk
0:02:52.3]} 10. Re1 {[%clk 0:02:50.4]} 10... Ne8 {[%clk 0:02:52.1]} 11. Ne5
{[%clk 0:02:51.2]} 11... Nxe5 {[%clk 0:02:53]} 12. Rxe5 {[%clk 0:02:53.1]} 12...
f6 {[%clk 0:02:54.4]} 13. Re1 {[%clk 0:02:52.7]} 13... e5 {[%clk 0:02:55.7]} 14.
f4 {[%clk 0:02:50.9]} 14... exf4 {[%clk 0:02:56.5]} 15. Qf3 {[%clk 0:02:51.6]}
15... fxg3 {[%clk 0:02:45.9]} 16. Qd5+ {[%clk 0:02:52.1]} 16... Kh8 {[%clk
0:02:47.3]} 17. Qxd8 {[%clk 0:02:53.3]} 17... Bxd8 {[%clk 0:02:48.1]} 18. hxg3
{[%clk 0:02:50.1]} 18... Bc7 {[%clk 0:01:49.4]} 19. Bxd4 {[%clk 0:02:42.3]}
19... Bxg3 {[%clk 0:01:39]} 20. Re3 {[%clk 0:02:34.8]} 20... Bf4 {[%clk
0:01:33.9]} 21. Re4 {[%clk 0:02:35]} 21... Bd6 {[%clk 0:01:16.7]} 22. Nc3 {[%clk
0:02:27.4]} 22... Bf5 {[%clk 0:01:13.8]} 23. Re3 {[%clk 0:02:11]} 23... Nc7
{[%clk 0:00:50.1]} 24. Bxb7 {[%clk 0:02:02.3]} 24... Rab8 {[%clk 0:00:51.3]} 25.
Bg2 {[%clk 0:01:59.4]} 25... Rbd8 {[%clk 0:00:16.2]} 26. Nd5 {[%clk 0:01:25.5]}
26... Nxd5 {[%clk 0:00:15.9]} 27. Bxd5 {[%clk 0:01:27.4]} 27... Bf4 {[%clk
0:00:17.4]} 28. Rf3 {[%clk 0:01:26.4]} 28... Be5 {[%clk 0:00:18.4]} 29. Bxe5
{[%clk 0:01:19.4]} 29... fxe5 {[%clk 0:00:19.4]} 30. Raf1 {[%clk 0:01:19.2]}
30... g6 {[%clk 0:00:20.5]} 31. Re3 {[%clk 0:01:14.2]} 31... Rfe8 {[%clk
0:00:21.5]} 32. Rfe1 {[%clk 0:01:15.6]} 32... e4 {[%clk 0:00:22.6]} 33. Bxe4
{[%clk 0:01:10.6]} 33... Bxe4 {[%clk 0:00:21.2]} 34. Rxe4 {[%clk 0:01:12.5]}
34... Rxe4 {[%clk 0:00:22.2]} 35. Rxe4 {[%clk 0:01:14.4]} 35... Rxd2 {[%clk
0:00:21.8]} 36. Re8+ {[%clk 0:01:15.7]} 36... Kg7 {[%clk 0:00:23]} 37. Re7+
{[%clk 0:01:17.6]} 37... Kf6 {[%clk 0:00:24.4]} 38. Rxa7 {[%clk 0:01:19.2]}
38... h5 {[%clk 0:00:25.3]} 39. c5 {[%clk 0:01:18.7]} 39... h4 {[%clk
0:00:26.3]} 40. c6 {[%clk 0:01:19.4]} 40... Rc2 {[%clk 0:00:27.5]} 41. c7 {[%clk
0:01:15.6]} 41... g5 {[%clk 0:00:26.6]} 42. b4 {[%clk 0:01:08]} 42... g4 {[%clk
0:00:27.5]} 43. b5 {[%clk 0:01:09.4]} 43... h3 {[%clk 0:00:28.7]} 44. Ra6+
{[%clk 0:01:02.8]} 44... Kg5 {[%clk 0:00:28.2]} 45. Rc6 {[%clk 0:01:02.6]} 45...
Rxa2 {[%clk 0:00:25.7]} 46. c8=Q {[%clk 0:01:02.5]} 46... Kh4 {[%clk 0:00:18.6]}
47. Rh6+ {[%clk 0:00:58.6]} 47... Kg5 {[%clk 0:00:17.9]} 48. Qe6 {[%clk
0:00:53.2]} 1-0

[Event "*** Titled Tuesday Blitz"]
[Site "Chess.com"]
[Date "2019.06.04"]
[Round "9"]
[White "Chesska7"]
[Black "nrvisakh"]
[Result "0-1"]
[WhiteElo "2144"]
[BlackElo "2740"]
[TimeControl "180+2"]
[EndTime "15:06:52 PDT"]
[Termination "nrvisakh won by checkmate"]

1. Nf3 {[%clk 0:02:57.4]} 1... Nf6 {[%clk 0:03:00.5]} 2. g3 {[%clk 0:02:58.6]}
2... b6 {[%clk 0:02:54.6]} 3. Bg2 {[%clk 0:02:59.1]} 3... Bb7 {[%clk 0:02:56.1]}
4. c4 {[%clk 0:02:58.8]} 4... c5 {[%clk 0:02:57.3]} 5. O-O {[%clk 0:02:59.9]}
5... g6 {[%clk 0:02:58.7]} 6. Nc3 {[%clk 0:03:00.7]} 6... Bg7 {[%clk 0:03:00.2]}
7. b3 {[%clk 0:03:01.8]} 7... Ne4 {[%clk 0:02:59.2]} 8. Bb2 {[%clk 0:03:01.7]}
8... Nxc3 {[%clk 0:03:00.5]} 9. Bxc3 {[%clk 0:03:02.9]} 9... Bxc3 {[%clk
0:03:01.4]} 10. dxc3 {[%clk 0:03:04.8]} 10... O-O {[%clk 0:03:03.3]} 11. a4
{[%clk 0:03:01.9]} 11... a5 {[%clk 0:03:03.3]} 12. Qc2 {[%clk 0:02:59.4]} 12...
f5 {[%clk 0:03:02.7]} 13. e3 {[%clk 0:02:56.5]} 13... d6 {[%clk 0:03:03]} 14. h4
{[%clk 0:02:51.6]} 14... Nd7 {[%clk 0:03:03.7]} 15. Rad1 {[%clk 0:02:49.6]}
15... Nf6 {[%clk 0:03:03.1]} 16. Ng5 {[%clk 0:02:50]} 16... Bxg2 {[%clk
0:03:02.9]} 17. Kxg2 {[%clk 0:02:51]} 17... Qd7 {[%clk 0:03:04.4]} 18. Nf3
{[%clk 0:02:39.2]} 18... Qb7 {[%clk 0:03:02.4]} 19. Qe2 {[%clk 0:02:32]} 19...
Ne4 {[%clk 0:03:03.5]} 20. Rc1 {[%clk 0:02:28.9]} 20... g5 {[%clk 0:03:04.4]}
21. Kh2 {[%clk 0:02:27.2]} 21... h6 {[%clk 0:03:04]} 22. Rg1 {[%clk 0:02:16.8]}
22... Rf6 {[%clk 0:03:04.1]} 23. Rg2 {[%clk 0:01:52.5]} 23... Raf8 {[%clk
0:03:02.4]} 24. Qd3 {[%clk 0:01:50.3]} 24... Re6 {[%clk 0:03:01.8]} 25. Qd5
{[%clk 0:01:48.3]} 25... Qxd5 {[%clk 0:02:58.6]} 26. cxd5 {[%clk 0:01:48.5]}
26... Rg6 {[%clk 0:03:00.5]} 27. c4 {[%clk 0:01:42.6]} 27... Kg7 {[%clk
0:02:56.3]} 28. Rc2 {[%clk 0:01:36.3]} 28... f4 {[%clk 0:02:54.3]} 29. gxf4
{[%clk 0:01:30.3]} 29... gxf4 {[%clk 0:02:54.2]} 30. Nd2 {[%clk 0:01:14.6]}
30... Nf6 {[%clk 0:02:43.2]} 31. e4 {[%clk 0:00:59.9]} 31... f3 {[%clk
0:02:25.8]} 32. Rxg6+ {[%clk 0:00:58.1]} 32... Kxg6 {[%clk 0:02:24]} 33. Rc3
{[%clk 0:00:56.8]} 33... Kh5 {[%clk 0:02:14.8]} 34. Rxf3 {[%clk 0:00:53.3]}
34... Kxh4 {[%clk 0:02:15.6]} 35. Rh3+ {[%clk 0:00:22.4]} 35... Kg5 {[%clk
0:02:15]} 36. Rg3+ {[%clk 0:00:19.5]} 36... Kf4 {[%clk 0:02:14.9]} 37. Rf3+
{[%clk 0:00:18.9]} 37... Ke5 {[%clk 0:02:15.6]} 38. Rf5+ {[%clk 0:00:19.7]}
38... Kd4 {[%clk 0:02:16.1]} 39. f3 {[%clk 0:00:17.3]} 39... Kc3 {[%clk
0:02:13.3]} 40. Nf1 {[%clk 0:00:18.3]} 40... Kxb3 {[%clk 0:02:13.6]} 41. Ne3
{[%clk 0:00:17.3]} 41... Kxa4 {[%clk 0:02:14.4]} 42. f4 {[%clk 0:00:17.3]} 42...
Kb3 {[%clk 0:02:15.5]} 43. e5 {[%clk 0:00:18.3]} 43... dxe5 {[%clk 0:02:17.2]}
44. fxe5 {[%clk 0:00:19.4]} 44... Ng4+ {[%clk 0:02:18.4]} 45. Kg3 {[%clk
0:00:18]} 45... Rxf5 {[%clk 0:02:20.3]} 46. Nxf5 {[%clk 0:00:19.4]} 46... Nxe5
{[%clk 0:02:21.5]} 47. Nxe7 {[%clk 0:00:19.4]} 47... a4 {[%clk 0:02:22.2]} 48.
d6 {[%clk 0:00:20.5]} 48... a3 {[%clk 0:02:23.3]} 49. Kf4 {[%clk 0:00:20.6]}
49... Nf7 {[%clk 0:02:20.1]} 50. d7 {[%clk 0:00:20.9]} 50... a2 {[%clk 0:02:22]}
51. Kf5 {[%clk 0:00:22.1]} 51... a1=Q {[%clk 0:02:23.2]} 52. Ke6 {[%clk
0:00:22.6]} 52... Nd8+ {[%clk 0:02:25.1]} 53. Kd6 {[%clk 0:00:23.2]} 53... Qf6+
{[%clk 0:02:26.6]} 54. Kc7 {[%clk 0:00:23.7]} 54... Qxe7 {[%clk 0:02:28.2]} 55.
Kb8 {[%clk 0:00:25.6]} 55... Qxd7 {[%clk 0:02:27.6]} 56. Ka8 {[%clk 0:00:25.2]}
56... Qb7# {[%clk 0:02:29.5]} 0-1